Cogmind - Beta 11.1 --- EXPLORER MODE // 2022.06.12 @ 17:57:13 // Winter2019/RPGLIKE Player: Grimbling Result: Self-destructed Performance ------------- Evolutions (2) 1000 Regions Visited (5) 1000 Robots Destroyed (23) 115 Value Destroyed (541) 541 Prototype IDs (3) 60 Alien Tech Used (0) 0 Bonus (300) 300 TOTAL SCORE: 3016 Bonus ------- Aligned with FarCom 300 Cogmind --------- Core Integrity 218/1000 Matter 260/300 Energy 340/340 System Corruption 0% Temperature Cool (0) Movement Treading (160) Location -8/Materials Parts ------- > --- POWER (1) -------- Light Deuterium Engine > --- PROPULSION (3) --- Light Treads Light Treads > --- UTILITY (5) ------ Utility Shielding > --- WEAPON (2) ------- Particle Gun > --- INVENTORY (3) ---- (None) Peak State ------------ > --- POWER ------------ Light Angular Momentum Engine > --- PROPULSION ------- Light Treads Light Treads > --- UTILITY ---------- Improved Terrain Scanner Utility Shielding Tractor Beam > --- WEAPON ----------- YOLO Cannon > --- INVENTORY -------- (None) [Rating: 32] Favorites ----------- Power Light Angular Momentum Engine Engine Light Angular Momentum Engine Propulsion Light Treads Treads Light Treads Utility Utility Shielding Device Improved Terrain Scanner Processor Modified TNC Protection Utility Shielding Weapon Shotgun Energy Gun Particle Gun Energy Cannon YOLO Cannon Ballistic Gun Shotgun Build | -11 -10 -10 -10 -9 -8 ------- Run | Scr Mat Min Exi Min Mat Slots Evolved 7 | 4 . . . . 3 Power . | . . . . . . Propulsion 2 | 1 . . . . 1 Utility 4 | 2 . . . . 2 Weapon 1 | 1 . . . . . Parts Attached 22 | 7 5 1 4 1 4 Power 7 | 1 2 1 . . 3 Engine 7 | 1 2 1 . . 3 Core . | . . . . . . Reactor . | . . . . . . Propulsion 2 | 2 . . . . . Treads 2 | 2 . . . . . Leg . | . . . . . . Wheel . | . . . . . . Hover . | . . . . . . Flight . | . . . . . . Utility 6 | 2 1 . 3 . . Device 3 | 1 1 . 1 . . Storage . | . . . . . . Processor 1 | . . . 1 . . Hackware . | . . . . . . Protection 2 | 1 . . 1 . . Artifact . | . . . . . . Weapon 7 | 2 2 . 1 1 1 Energy Gun 1 | . . . . . 1 Energy Cannon 2 | . . . 1 1 . Ballistic Gun 4 | 2 2 . . . . Ballistic Cannon . | . . . . . . Launcher . | . . . . . . Special Weapon . | . . . . . . Impact Weapon . | . . . . . . Slashing Weapon . | . . . . . . Piercing Weapon . | . . . . . . Special Melee Weapon . | . . . . . . Unidentified Prototypes 3 | . . . 3 . . Parts Lost 5 | . 1 . . . 4 Power 2 | . 1 . . . 1 Propulsion . | . . . . . . Utility 2 | . . . . . 2 Weapon 1 | . . . . . 1 Highest Loss Streak 4 | . 1 . . . 4 To Critical Strikes . | . . . . . . Average Slot Usage (%) 90 | . 95 100 88 83 51 Engine 11 | . 11 12 12 12 7 Treads 24 | . 25 25 25 25 18 Device 23 | . 20 25 25 25 10 Protection 11 | . 12 12 11 12 9 Energy Cannon 2 | . . . . 8 5 Ballistic Gun 16 | . 24 25 13 . . Naked Turns . | . . . . . . Heaviest Build 30 | 8 14 18 19 30 30 Greatest Support 40 | 40 40 40 40 40 40 Greatest Overweight (x) . | . . . . . . Average Overweight (x) . | . . . . . . Largest Inventory Capacity 3 | 3 3 3 3 3 3 Average Capacity 2 | 2 3 3 3 3 3 Most Carried 3 | . 2 3 3 2 1 Average Carried 1 | . . 2 2 . . Final Capacity 3 | 3 3 3 3 3 3 Final Carried 2 | . 2 2 2 . . Class Distribution -------------------- 84% | Hacker-Skirmisher 15% | Hacker-Mutant Dominant Class ---------------- Hacker-Skirmisher | -10/Materials Hacker-Skirmisher | -10/Mines Hacker-Skirmisher | -10/Exiles Hacker-Skirmisher | -9/Mines Hacker-Mutant | -8/Materials Resources | -11 -10 -10 -10 -9 -8 ----------- Run | Scr Mat Min Exi Min Mat Matter Collected 700 | 306 185 148 40 10 11 Remotely 322 | . 153 148 . 10 11 Salvage Created 651 | 168 285 81 . 76 41 Parts 48 | 13 20 7 . 4 4 Haulers Intercepted 1 | . . . . . 1 Recyclers Shooed 1 | . . 1 . . . Parts Field Recycled . | . . . . . . Retrieved Matter . | . . . . . . Parts Self-Destructed . | . . . . . . Prevented . | . . . . . . Kills | -11 -10 -10 -10 -9 -8 ------- Run | Scr Mat Min Exi Min Mat Combat Hostiles Destroyed 30 | . 4 4 . 21 1 Guns 8 | . 4 4 . . . Cannons 5 | . . . . 4 1 AOE 17 | . . . . 17 . Classes Destroyed 11 | 2 4 . . 3 2 Worker 2 | . 2 . . . . Builder 1 | . . . . 1 . Tunneler 5 | 4 1 . . . . Hauler 1 | . . . . . 1 Recycler 2 | 1 1 . . . . Watcher 1 | . 1 . . . . Swarmer 3 | . 1 2 . . . Grunt 5 | . 3 2 . . . Duelist 1 | . . . . . 1 Demolisher 2 | . . . . 2 . Assembled 19 | . . . . 19 . Best Kill Streak 22 | 3 3 2 . 22 2 Combat Bots Only 21 | . 2 2 . 21 1 Max Kills in Single Turn 9 | 1 1 1 . 9 2 Gunslinging . | . . . . . . Exploded 7 | . . . . 7 . Melee . | . . . . . . Uniques/NPCs Destroyed . | . . . . . . Combat | -11 -10 -10 -10 -9 -8 -------- Run | Scr Mat Min Exi Min Mat Damage Taken 915 | . 235 10 . 463 207 Core 722 | . 176 8 . 356 182 Absorbed by Shields . | . . . . . . Redirected to Core 546 | . 148 4 . 313 81 Redirected to Shielding 2 | . . . . 2 . Core Remaining (%) 82 | 100 . . . 65 . Volleys Fired 44 | 9 18 4 . 9 4 Largest 2 | 2 2 2 . 1 1 Hottest 100 | 40 46 46 . 100 100 Shots Fired 74 | 18 36 8 . 9 3 Gun 64 | 18 36 8 . . 2 Cannon 10 | . . . . 9 1 Launcher . | . . . . . . Special . | . . . . . . Kinetic 62 | 18 36 8 . . . Thermal 12 | . . . . 9 3 Explosive . | . . . . . . Electromagnetic . | . . . . . . Robot Hit Streak 21 | 7 10 12 . 19 21 Robot Miss Streak 1 | 1 1 . . . 1 Penetration Max . | . . . . . . Secondary Targets 1 | . 1 . . . . Max Gunslinging Chain 1 | . 1 . . . . Shots Hit Robots 56 | 12 31 4 . 7 2 Core Hits 48 | 7 15 5 . 18 3 Critical Kills 1 | . 1 . . . . Critical Parts Destroyed . | . . . . . . Critical Strikes 1 | . 1 . . . . Destroy 1 | . 1 . . . . Melee Attacks . | . . . . . . Impact . | . . . . . . Slashing . | . . . . . . Piercing . | . . . . . . Sneak Attacks . | . . . . . . Combat Hostiles . | . . . . . . Follow-up Attacks . | . . . . . . Damage Inflicted 3328 | 134 470 97 . 2389 238 Guns 699 | 134 469 79 . . 17 Cannons 893 | . . . . 777 116 Explosions 1717 | . . . . 1612 105 Melee . | . . . . . . Ramming 19 | . 1 18 . . . Kinetic 682 | 134 469 79 . . . Thermal 2627 | . . . . 2389 238 Explosive . | . . . . . . Electromagnetic . | . . . . . . Impact . | . . . . . . Slashing . | . . . . . . Piercing . | . . . . . . Highest Corruption 1 | . 1 1 1 1 . Average Corruption 1 | . 1 1 1 1 . Corruption Purged . | . . . . . . Corruption Blocked . | . . . . . . Effects 18 | . 5 5 3 5 . Message Errors 6 | . 1 4 . 1 . Matter Fused 4 | . 2 . . 2 . Heat Flow Errors 2 | . . . 1 1 . Energy Discharges 4 | . 2 1 1 . . Data Loss (minor) 2 | . . . 1 1 . Overload Shots . | . . . . . . Overflow Damage 446 | . . . . 446 . Projectiles 241 | . . . . 241 . Explosions 205 | . . . . 205 . Melee . | . . . . . . Knockbacks 1 | . . 1 . . . Impact 1 | . . 1 . . . Kinetic . | . . . . . . Secondary . | . . . . . . Self-Inflicted Damage 55 | . . . . 9 46 Shots 2 | . . . . 1 1 Rammed 5 | . 1 4 . . . Targets Rammed 6 | . 2 4 . . . Kicked . | . . . . . . Crushed 1 | . 1 . . . . Highest Temperature 251 | . . . 251 101 . Average Temperature 114 | . . . 126 71 . Received Heat Transfer 331 | . 129 . . 40 162 Siege Activations . | . . . . . . Robots Corrupted . | . . . . . . Combat Hostiles . | . . . . . . Parts Fried . | . . . . . . Impact Corruptions . | . . . . . . Robots Melted . | . . . . . . Combat Hostiles . | . . . . . . Parts Melted 2 | . . . . 1 1 Heat Transferred 2277 | . . . . 2080 197 Parts Sabotaged . | . . . . . . Parts Stolen . | . . . . . . Parts Stripped . | . . . . . . Power Chain Reactions . | . . . . . . Missiles Intercepted . | . . . . . . Alert | -11 -10 -10 -10 -9 -8 ------- Run | Scr Mat Min Exi Min Mat Peak Influence 131 | 25 130 87 . 131 58 Initial 35 | . 12 6 . . 35 Average 38 | 13 56 15 . 65 28 Maximum Alert Level . | . . . . . . Low Security (%) 100 | 100 100 100 . 100 100 Level 1 . | . . . . . . Level 2 . | . . . . . . Level 3 . | . . . . . . Level 4 . | . . . . . . Level 5 . | . . . . . . High Security . | . . . . . . Max Security . | . . . . . . Squads Dispatched 1 | . 1 . . . . Investigation 1 | . 1 . . . . Extermination . | . . . . . . Reinforcement . | . . . . . . Assault . | . . . . . . Garrison . | . . . . . . Intercept . | . . . . . . Searches Triggered . | . . . . . . Construction Impeded . | . . . . . . Haulers Reinforced . | . . . . . . Active Scanning Responses . | . . . . . . Cargo Convoy Interrupts . | . . . . . . Stealth | -11 -10 -10 -10 -9 -8 --------- Run | Scr Mat Min Exi Min Mat Distress Signals 2 | . 2 . . . . Communications Jammed . | . . . . . . Distress Signals . | . . . . . . Times Spotted 37 | . 8 4 . 22 3 Peak Tracking Total 20 | . 3 2 . 20 3 Tactical Retreats 2 | . 2 . . . . Traps | -11 -10 -10 -10 -9 -8 ------- Run | Scr Mat Min Exi Min Mat Traps Triggered 3 | . 3 . . . . Indirectly . | . . . . . . Trap Hack Attempts . | . . . . . . Triggered . | . . . . . . Disarmed . | . . . . . . Reprogrammed . | . . . . . . Reused . | . . . . . . Traps Extracted . | . . . . . . Installed . | . . . . . . Triggered . | . . . . . . Exploded 1 | . . . 1 . . Machines | -11 -10 -10 -10 -9 -8 ---------- Run | Scr Mat Min Exi Min Mat Machines Disabled 9 | . . . . 8 1 Max in Single Turn 8 | . . . . 8 1 Machines Sabotaged . | . . . . . . Garrisons Compromised . | . . . . . . Overloaded Fab Kills . | . . . . . . Hacking | -11 -10 -10 -10 -9 -8 --------- Run | Scr Mat Min Exi Min Mat Machines Accessed 3 | . 2 . . . 1 Terminals 2 | . 1 . . . 1 Fabricators . | . . . . . . Repair Stations . | . . . . . . Recycling Units 1 | . 1 . . . . Scanalyzers . | . . . . . . Garrison Access . | . . . . . . Total Hacks 8 | . 5 . . . 3 Successful 4 | . 2 . . . 2 Failed 4 | . 3 . . . 1 Catastrophic . | . . . . . . Database Lockouts . | . . . . . . Manual 9 | . 4 1 1 . 3 Terminals 7 | . 4 . . . 3 Fabricators . | . . . . . . Repair Stations . | . . . . . . Recycling Units 1 | . 1 . . . . Scanalyzers . | . . . . . . Garrison Access . | . . . . . . Terminal Hacks 3 | . 1 . . . 2 Unreport Threat 3 | . 1 . . . 2 Fabricator Hacks . | . . . . . . Repair Station Hacks . | . . . . . . Recycling Unit Hacks 1 | . 1 . . . . Retrieve Components 1 | . 1 . . . . Scanalyzer . | . . . . . . Garrison Access Hacks . | . . . . . . Unauthorized Hacks . | . . . . . . Terminals . | . . . . . . Fabricators . | . . . . . . Repair Stations . | . . . . . . Recycling Units . | . . . . . . Scanalyzers . | . . . . . . Garrison Access . | . . . . . . Data Cores Recovered . | . . . . . . Used . | . . . . . . Hacking Detections 3 | . 2 . . . 1 Full Trace Events 1 | . 1 . . . . Feedback Events . | . . . . . . Feedback Blocked . | . . . . . . Robot Schematics Acquired . | . . . . . . Robots Built . | . . . . . . Authchips . | . . . . . . Time . | . . . . . . Total Robot Build Rating . | . . . . . . Part Schematics Acquired . | . . . . . . Parts Built . | . . . . . . Authchips . | . . . . . . Time . | . . . . . . Total Part Build Rating . | . . . . . . Parts Repaired . | . . . . . . Time . | . . . . . . Parts Recycled . | . . . . . . Recycled Matter . | . . . . . . Retrieved Matter . | . . . . . . Retrieved Components 2 | . 2 . . . . Parts Scanalyzed . | . . . . . . Part Schematics Acquired . | . . . . . . Parts Damaged . | . . . . . . Bothacking | -11 -10 -10 -10 -9 -8 ------------ Run | Scr Mat Min Exi Min Mat Used RIF Installer . | . . . . . . Robots Hacked . | . . . . . . Non-combat . | . . . . . . Combat . | . . . . . . Robot Hacks Applied . | . . . . . . Relay Couplers Released . | . . . . . . Fabnet Peak Effective % . | . . . . . . Robots Rewired . | . . . . . . Allies Hacked . | . . . . . . Hacks Repelled . | . . . . . . Allies | -11 -10 -10 -10 -9 -8 -------- Run | Scr Mat Min Exi Min Mat Total Allies 5 | . . 5 . . . Largest Group 4 | . . 4 4 3 . Highest-Rated Group 58 | . . 58 58 40 . Highest-Rated Ally 31 | . . 31 18 16 . Total Orders . | . . . . . . Ally Attacks 14 | . . 6 . 8 . Total Damage 157 | . . 84 . 73 . Kills 1 | . . . . 1 . Allies Corrupted . | . . . . . . Allies Melted . | . . . . . . Intel | -11 -10 -10 -10 -9 -8 ------- Run | Scr Mat Min Exi Min Mat Robot Analysis Total . | . . . . . . Derelict Logs Recovered . | . . . . . . Drone Launches . | . . . . . . Drone Recoveries . | . . . . . . Exploration | -11 -10 -10 -10 -9 -8 ------------- Run | Scr Mat Min Exi Min Mat Turns Passed 2292 | 162 475 719 359 476 101 Spaces Moved 1310 | 85 253 430 219 272 51 Core 8 | 8 . . . . . Treads 1302 | 77 253 430 219 272 51 Legs . | . . . . . . Wheels . | . . . . . . Hover . | . . . . . . Flight . | . . . . . . Fastest Speed 50 | 50 160 160 160 160 160 Average Speed 159 | 149 160 160 160 160 160 Slowest Speed 160 | 160 160 160 160 160 160 Overloaded Moves . | . . . . . . Propulsion Burnouts . | . . . . . . Robots Hopped . | . . . . . . Cave-ins Triggered . | . . . . . . Exploration Rate (%) 48 | 5 57 91 61 72 5 Regions Visited 5 Branch Regions 3 Pre-discovered Areas . | . . . . . . Known Exits Taken 5 | 1 1 1 1 1 . Unknown Exits Taken . | . . . . . . Scrap Searched 2 | . . 2 . . . Spaces Dug . | . . . . . . Terrain Destroyed 98 | . . . . 90 8 Melee . | . . . . . . Projectile 2 | . . . . 2 . AOE 96 | . . . . 88 8 Terrain Rammed . | . . . . . . Walls Destroyed . | . . . . . . Machines Disabled . | . . . . . . Actions | -11 -10 -10 -10 -9 -8 --------- Run | Scr Mat Min Exi Min Mat Total 1416 | 100 287 451 230 286 62 Wait 3 | . . 3 . . . Move 1305 | 84 252 429 218 271 51 Hop . | . . . . . . Pick Up 2 | . 2 . . . . Fast Attach 18 | 7 4 1 3 . 3 Attach 3 | . . . 1 1 1 Detach 8 | . 2 1 3 . 2 Swap 1 | . 1 . . . . Drop 10 | . 3 1 5 . 1 Fire 44 | 9 18 4 . 9 4 Melee . | . . . . . . Ram . | . . . . . . Kick . | . . . . . . Crush 6 | . 2 4 . . . Escape Stasis . | . . . . . . Rewire . | . . . . . . Trap . | . . . . . . Miscellaneous 16 | . 3 8 . 5 . Route ------- -11/Scrapyard -10/Materials (discovered 3 exits: *Mat x2 / *Min) -10/Mines (discovered 3 exits: *Mat x2 / *Exi) -10/Exiles (discovered 2 exits: *Min x2) -9/Mines -8/Materials History --------- Turn | Location | Event 7 | -11/Scrapyard | Upgraded with Propulsion slot (x1) 7 | -11/Scrapyard | Upgraded with Utility slot (x2) 7 | -11/Scrapyard | Upgraded with Weapon slot (x1) 10 | -11/Scrapyard | Identified exit to Materials 10 | -11/Scrapyard | Discovered exit to Materials (range 16) 163 | -11/Scrapyard | Entered Materials 271 | -10/Materials | Identified exit to Materials 271 | -10/Materials | Discovered exit to Materials (range 15) 316 | -10/Materials | Build established: Hacker-Skirmisher 473 | -10/Materials | Discovered exit to Materials (range 15) 553 | -10/Materials | Identified exit to Mines 553 | -10/Materials | Discovered exit to Mines (range 14) 638 | -10/Materials | Entered Mines 702 | -10/Mines | Discovered exit to Materials (range 16) 840 | -10/Mines | Identified exit to Exiles 840 | -10/Mines | Discovered exit to Exiles (range 13) 1048 | -10/Mines | Found a damaged Exp. Sensor Array with a note attached 1158 | -10/Mines | Discovered exit to Materials (range 8) 1173 | -10/Mines | Assisted by bots powering up and referring to "LRC-V3" 1346 | -10/Mines | Deemed a non-threat by the Exiles lab entrance 1357 | -10/Mines | Entered Exiles 1357 | -10/Exiles | Accompanied by 4 allies 1359 | -10/Exiles | Reached level 2 1378 | -10/Exiles | Identified exit to Mines 1378 | -10/Exiles | Discovered exit to Mines (range 15) 1397 | -10/Exiles | Met 8R-AWN 1425 | -10/Exiles | Met EX-HEX 1471 | -10/Exiles | Met EX-BIN 1490 | -10/Exiles | Aligned with FarCom system 1492 | -10/Exiles | Given EX-Vault access code 1533 | -10/Exiles | Opened EX-Vault 1542 | -10/Exiles | Found Prototype Device 1542 | -10/Exiles | Identified Skeleton Box 1549 | -10/Exiles | Found Prototype Processor 1549 | -10/Exiles | Identified Modified TNC 1560 | -10/Exiles | Found Prototype Energy Cannon 1560 | -10/Exiles | Identified YOLO Cannon 1596 | -10/Exiles | Warned to stay clear of 0b10 Research branches 1608 | -10/Exiles | Exiles lab attacked by MAIN.C 1701 | -10/Exiles | Discovered exit to Mines (range 10) 1716 | -10/Exiles | Left Exiles lab with YOLO Cannon 1716 | -10/Exiles | Entered Mines 1716 | -9/Mines | Accompanied by 3 allies 1831 | -9/Mines | Build established: Hacker-Mutant 1857 | -9/Mines | Assembled infested the area 1897 | -9/Mines | Reached level 3 1918 | -9/Mines | Destroyed 21 combat bots 2166 | -9/Mines | Build established: Hacker-Skirmisher 2169 | -9/Mines | Identified exit to Materials 2169 | -9/Mines | Discovered exit to Materials (range 16) 2192 | -9/Mines | Entered Materials 2194 | -8/Materials | Reached level 4 2194 | -8/Materials | Reached level 5 2197 | -8/Materials | Upgraded with Propulsion slot (x1) 2197 | -8/Materials | Upgraded with Utility slot (x2) 2254 | -8/Materials | Reached level 6 2259 | -8/Materials | Core integrity fell below 50% 2289 | -8/Materials | Lost 4 parts (1p2u1w) 2293 | -8/Materials | Self-destructed Last Messages --------------- 02258_ YOLO Cannon suddenly explodes. 02258_ Tractor Beam destroyed. 02258_ Imp. Terrain Scanner destroyed. 02258_ Lgt. Angular Momentum Engine destroyed. 02258_ Core damaged (-361). 02258_ Terminal disabled. 02262_ U-05 Engineer lays Concrete. 02265_ Critical hit (Burn: +37). 02266_ U-05 Engineer lays Concrete. 02266_ R-06 Scavenger collects Imp. Aluminum Leg. 02267_ U-05 Engineer lays Concrete. 02270_ R-06 Scavenger collects Imp. Ion Engine. 02270_ U-05 Engineer lays Concrete. 02274_ R-06 Scavenger collects Imp. Aluminum Leg. 02274_ U-05 Engineer lays Concrete. 02276_ Acquired Lgt. Deuterium Engine. 02277_ U-05 Engineer lays Concrete. 02281_ U-05 Engineer builds a Wall. 02281_ U-05 Engineer lays Concrete. 02288_ Acquired Particle Gun. Map ----- +----------------------------------------------------+ | ????????????????? ??? ??????????????????????????? | | ??????????#??"?""?? ?#? ????????????????????????? | | ??????? ??##"""?? ?# ?????????????????????????? | | ????? ?###"?"?? ?# ??????????????????????? | | ??????????##"?"?"? ?## ??? ???????????????????? | | ????? ?? ###? ## ???????????????????? | | ??"? ?? #####??+##### """? "??????????????????? | | ???? ? """ "??????????????????? | | ? ?? """ ""?????????????????? | | ??? ? ? ????????????????? | | "?"??#?##?########## ?????????????????? | | ?###?###########?### ###?#??????????????? | | ?################### % ####???????????????? | | ########### #""# ] ##?#???????????????? | | ?########## ? *%[## ????????????????? | | ##?######## ? ] ##?? ?????????????? | | #??######## #### ?#? ???????????????? | | #########?# """""""#### ?# ????????????????? | | ?########### ## # ## ??????????????? | | ##### # ## """ # ## ???????????????? | | ?#### # ## """ + ? + ???????????????? | | #?### + ## """ #?#? # ? ??????????????? | | ##### # ## """ #### ####??????????????? | | ##### # ## """ #### ####??????????????? | | ##### %# ## gg ###???###??????????????? | | ?################ @#### ???????????????? | | ##?##############################????????????????? | | #####?##############?###?########?+??????????????? | | #??##?#########?#########?#?# ? ???????????????? | | ###?#########################? ?????????????????? | | ???#??#??#########?##??##?##??? ?????????????????? | | ###?#??####?#?#########?####? ???????????????????? | | ?####??#?###################? ???????????????????? | | ???#???#####?########?###???#????????????????????? | | ????#?###?######?###?######??????????????????????? | | | | | | | | | | | | | | | | | | | | | | | | | | | | | | | +----------------------------------------------------+ Best States ------------- Heat Dissipation 91 Energy Generation 18 Energy Capacity 350 Matter Stores 300 Matter Capacity 300 Sight Range 16 Robot Scan Range 18 Terrain Scan Range 16 Terrain Scan Density 410 Resistance: KI 35 Resistance: TH 35 Resistance: EX 35 Resistance: EM 35 Resistance: I 35 Resistance: S 35 Resistance: P 35 Utility Shielding 33 Evasion (%) 40 Recoil Reduction 2 Offensive Hacking 20 Item Schematics ----------------- None Robot Schematics ------------------ None Fabricated ------------ Nothing Alien Tech Used ----------------- None Achievements -------------- Exterminator Challenges ------------ None RPGLIKE | -11 -10 -10 -10 -9 -8 --------- Run | Scr Mat Min Exi Min Mat Levels Raised 5 | . . . 1 1 3 XP Earned 13727 | 6000 485 1005 350 1262 4625 XP Spent 11970 | 5910 . . 1590 . 4470 Upgrades 46 | 24 . . 10 . 12 Propulsion Slot 2 | 1 . . . . 1 Utility Slot 4 | 2 . . . . 2 Weapon Slot 1 | 1 . . . . . Core Integrity 8 | . . . 2 . 6 Heat Dissipation 11 | 4 . . 7 . . Energy Storage 4 | . . . 1 . 3 Inventory Capacity 3 | 3 . . . . . Sensor Range 9 | 9 . . . . . Terrain Scan Density 4 | 4 . . . . . Protomatter Created 210 | . 19 58 . 85 48 Integrity Restored 336 | . 47 172 . 117 . Core 301 | . 34 150 . 117 . Parts 35 | . 13 22 . . . Protomatter Decayed 26 | . 2 . 24 . . Game ------ Seed IonicLongswordClaws Manual? 0 Play Time 00:14:50 Cumulative 240.4 hours Start 2022.06.12 @ 17:27:21 End 2022.06.12 @ 17:57:13 Sessions 1 Manual Loads 0 Difficulty Explorer Special Mode Winter2019/RPGLIKE Game No. 83 Rogue 0 Adventurer 1 Explorer 82 Win Type - Total 16 Types 9/0/4/3/0/0/0/0/0 Lore% 86 Gallery% 86 Achievement% 73 Wizard Run 0 Options --------- ASCII 0 Keyboard 1 Movement Numpad Keybinds 0 Fullscreen 0 Font 14/Terminus Map View 76x50 Tactical HUD 1 Map Filters BRIGHTNESS(150) Filters NONE Steam 1 RUN: 7591c7ce-5709-4fef-9324-25f10f3ae441